fUSD/lending_fUSD_20260127
["ID","MTS","AMOUNT","RATE_DAILY","PERIOD"]
[403766666,1769526641826,-200.0,0.0001634,2]
[403766668,1769526641838,-242.15909246,0.00016348,2]
[403766670,1769526641847,-500.0,0.00016373,2]
[403766672,1769526641856,-500.0,0.00016373,2]
[403766674,1769526641867,-500.0,0.00016373,2]
[403766676,1769526641876,-321.78089856,0.00016373,2]
[403766678,1769526641887,-302.74545391,0.00016373,2]
[403766680,1769526641896,-500.0,0.00016373,2]
[403766682,1769526641906,-548.87500636,0.00016373,2]
[403766684,1769526641916,-500.0,0.00016373,2]
[403766686,1769526641926,-500.0,0.00016373,2]
[403766688,1769526641935,-492.9262075,0.00016373,2]
[403766690,1769526641944,-516.54603341,0.00016373,2]
[403766692,1769526641953,-500.37981101,0.00016373,2]
[403766694,1769526641963,-504.29183883,0.00016373,2]
[403766696,1769526641972,-493.49061244,0.00016373,2]
[403766697,1769526641983,-500.0,0.00016373,2]
[403766699,1769526641992,-516.83194963,0.00016373,2]
[403766701,1769526642001,-500.0,0.00016373,2]
[403766703,1769526642011,-500.0,0.00016373,2]
[403766705,1769526642019,-500.0,0.00016399,2]
[403766707,1769526642028,-500.0,0.00016399,2]
[403766709,1769526642038,-500.0,0.00016399,2]
[403766711,1769526642047,-500.0,0.00016399,2]
[403766713,1769526642056,-500.0,0.00016401,2]
[403766715,1769526642065,-1582.3537833,0.00016402,2]
[403766717,1769526642075,-4175.85666942,0.00016402,2]
[403766719,1769526642083,-7366.70614495,0.00016402,2]
[403766721,1769526642092,-11020.1518191,0.00016402,2]
[403766723,1769526642102,-14910.6573,0.00016402,2]
[403766725,1769526642111,-251.11897888,0.00016403,2]
[403766727,1769526642120,-1215.49,0.00016408,2]
[403766729,1769526642130,-1000.0,0.00016409,2]
[403766731,1769526642139,-195.0,0.00016422,2]
[403766733,1769526642148,-277.68237912,0.00016431,2]
[403766735,1769526642158,-160.1729146,0.00016431,2]
[403766737,1769526642167,-2500.0,0.00016431,2]
[403766739,1769526642176,-195.0,0.00016431,2]
[403766741,1769526642186,-155.63257526,0.00016432,2]
[403766743,1769526642195,-1680.0,0.00016432,2]
[403766745,1769526642204,-347.45872628,0.00016433,2]
[403766747,1769526642214,-250.0,0.00016433,2]
[403766749,1769526642224,-600.0,0.00016433,2]
[403766751,1769526642234,-195.0,0.00016433,2]
[403766753,1769526642243,-500.0,0.00016437,2]
[403766755,1769526642252,-500.0,0.00016438,2]
[403766757,1769526642262,-500.0,0.00016438,2]
[403766760,1769526642271,-500.0,0.00016438,2]
[403766761,1769526642281,-500.0,0.00016438,2]
[403766764,1769526642290,-500.0,0.00016438,2]
[403766765,1769526642299,-500.0,0.00016438,2]
[403766767,1769526642308,-500.0,0.00016438,2]
[403766769,1769526642317,-500.0,0.00016438,2]
[403766771,1769526642326,-500.0,0.00016438,2]
[403766773,1769526642335,-500.0,0.00016438,2]
[403766775,1769526642345,-500.0,0.00016438,2]
[403766777,1769526642355,-500.0,0.00016438,2]
[403766779,1769526642364,-350.77930689,0.00016438,2]
[403766781,1769526642373,-961.94,0.00016438,2]
[403766783,1769526642382,-961.94,0.00016438,2]
[403766785,1769526642392,-961.94,0.00016438,2]
[403766787,1769526642401,-961.94,0.00016438,2]
[403766789,1769526642410,-961.94,0.00016438,2]
[403766791,1769526642420,-961.94,0.00016438,2]
[403766793,1769526642430,-961.94,0.00016438,2]
[403766795,1769526642439,-961.94,0.00016438,2]
[403766798,1769526642448,-961.94,0.00016438,2]
[403766800,1769526642457,-961.94,0.00016438,2]
[403766802,1769526642467,-961.94,0.00016438,2]
[403766803,1769526642476,-961.94,0.00016438,2]
[403766805,1769526642486,-961.94,0.00016438,2]
[403766807,1769526642495,-961.94,0.00016438,2]
[403766810,1769526642504,-961.94,0.00016438,2]
[403766812,1769526642513,-961.94,0.00016438,2]
[403766814,1769526642528,-961.94,0.00016438,2]
[403766816,1769526642539,-961.94,0.00016438,2]
[403766818,1769526642548,-961.94,0.00016438,2]
[403766820,1769526642557,-961.94,0.00016438,2]
[403766822,1769526642567,-961.94,0.00016438,2]
[403766824,1769526642576,-961.94,0.00016438,2]
[403766826,1769526642585,-961.94,0.00016438,2]
[403766828,1769526642594,-962.08138756,0.00016438,2]
[403766830,1769526642605,-500.0,0.00016438,2]
[403766832,1769526642614,-500.0,0.00016438,2]
[403766834,1769526642624,-500.0,0.00016438,2]
[403766836,1769526642634,-500.0,0.00016438,2]
[403766838,1769526642643,-500.0,0.00016438,2]
[403766840,1769526642652,-500.0,0.00016438,2]
[403766842,1769526642661,-500.0,0.00016438,2]
[403766844,1769526642670,-500.0,0.00016438,2]
[403766846,1769526642679,-500.0,0.00016438,2]
[403766848,1769526642688,-500.0,0.00016438,2]
[403766850,1769526642698,-500.0,0.00016438,2]
[403766852,1769526642707,-500.0,0.00016438,2]
[403766854,1769526642716,-500.0,0.00016438,2]
[403766856,1769526642724,-500.0,0.00016438,2]
[403766858,1769526642733,-500.0,0.00016438,2]
[403766860,1769526642742,-239.33184564,0.00016438,2]
[403766862,1769526642751,-500.0,0.00016438,2]
[403766864,1769526642760,-500.0,0.00016438,2]
[403766866,1769526642769,-500.0,0.00016438,2]
[403766868,1769526642778,-500.0,0.00016438,2]
[403766870,1769526642788,-500.0,0.00016438,2]
[403766872,1769526642797,-500.0,0.00016438,2]
[403766874,1769526642806,-500.0,0.00016438,2]
[403766876,1769526642815,-500.0,0.00016438,2]
[403766878,1769526642824,-500.0,0.00016438,2]
[403766880,1769526642837,-500.0,0.00016438,2]
[403766882,1769526642846,-500.0,0.00016438,2]
[403766883,1769526642856,-500.0,0.00016438,2]
[403766884,1769526642865,-500.0,0.00016438,2]
[403766885,1769526642875,-500.0,0.00016438,2]
[403766886,1769526642884,-500.0,0.00016438,2]
[403766888,1769526642893,-500.0,0.00016438,2]
[403766889,1769526642903,-500.0,0.00016438,2]
[403766891,1769526642913,-500.0,0.00016438,2]
[403766892,1769526642921,-500.0,0.00016438,2]
[403766893,1769526642930,-500.0,0.00016438,2]
[403766894,1769526642939,-500.0,0.00016438,2]
[403766895,1769526642948,-254.48252585,0.00016438,2]
[403766896,1769526642957,-300.0,0.00016438,2]
[403766897,1769526642966,-300.0,0.00016438,2]
[403766898,1769526642975,-150.43874916,0.00016438,2]
[403766899,1769526642985,-300.0,0.00016438,2]
[403766900,1769526642994,-301.22924657,0.00016438,2]
[403766901,1769526643003,-500.0,0.00016438,2]
[403766902,1769526643013,-500.0,0.00016438,2]
[403766904,1769526643022,-500.0,0.00016438,2]
[403766905,1769526643032,-500.0,0.00016438,2]
[403766907,1769526643041,-500.0,0.00016438,2]
[403766908,1769526643051,-500.0,0.00016438,2]
[403766909,1769526643060,-500.0,0.00016438,2]
[403766911,1769526643070,-500.0,0.00016438,2]
[403766912,1769526643292,-500.0,0.00016438,2]
[403766913,1769526643303,-500.0,0.00016438,2]
[403766914,1769526643313,-500.0,0.00016438,2]
[403766915,1769526643323,-500.0,0.00016438,2]
[403766916,1769526643333,-500.0,0.00016438,2]
[403766917,1769526643343,-500.0,0.00016438,2]
[403766918,1769526643353,-500.0,0.00016438,2]
[403766919,1769526643364,-500.0,0.00016438,2]
[403766920,1769526643374,-500.0,0.00016438,2]
[403766921,1769526643384,-500.0,0.00016438,2]
[403766922,1769526643393,-500.0,0.00016438,2]
[403766923,1769526643402,-500.0,0.00016438,2]
[403766924,1769526643411,-500.0,0.00016438,2]
[403766925,1769526643420,-500.0,0.00016438,2]
[403766926,1769526643430,-500.0,0.00016438,2]
[403766927,1769526643439,-500.0,0.00016438,2]
[403766928,1769526643448,-500.0,0.00016438,2]
[403766929,1769526643458,-500.0,0.00016438,2]
[403766930,1769526643468,-500.0,0.00016438,2]
[403766931,1769526643477,-500.0,0.00016438,2]
[403766932,1769526643487,-500.0,0.00016438,2]
[403766933,1769526643496,-500.0,0.00016438,2]
[403766934,1769526643506,-500.0,0.00016438,2]
[403766935,1769526643515,-500.0,0.00016438,2]
[403766936,1769526643525,-500.0,0.00016438,2]
[403766937,1769526643536,-500.0,0.00016438,2]
[403766938,1769526643545,-500.0,0.00016438,2]
[403766939,1769526643555,-500.0,0.00016438,2]
[403766940,1769526643565,-500.0,0.00016438,2]
[403766941,1769526643575,-500.0,0.00016438,2]
[403766942,1769526643584,-500.0,0.00016438,2]
[403766943,1769526643594,-500.0,0.00016438,2]
[403766944,1769526643603,-200.16644993,0.00016438,2]
[403766945,1769526643612,-164.28925702,0.00016438,2]
[403766946,1769526643622,-800.0,0.00016438,2]
[403766947,1769526643631,-165.25,0.0001644,2]
[403766948,1769526643640,-500.2094616,0.00016444,2]
[403766949,1769526643650,-964.73,0.00016455,2]
[403766950,1769526643660,-260.4103811,0.00016458,2]
[403766951,1769526643670,-270.0455652,0.00016513,2]
[403766953,1769526643679,-1000.0,0.00016515,2]
[403766955,1769526643689,-166.66,0.00016536,2]
[403766957,1769526643698,-13052.59440405,0.0001654,2]
[403766959,1769526643707,-15675.57885438,0.0001654,2]
[403766961,1769526643717,-280.03725112,0.00016568,2]
[403766962,1769526643726,-470.06007413,0.00016598,2]
[403766963,1769526643735,-360.47742724,0.000166,2]
[403766964,1769526643745,-152.18170893,0.00016621,2]
[403766965,1769526643754,-181.08010149,0.00016621,2]
[403766966,1769526643763,-854.2589148,0.00016621,2]
[403766967,1769526643773,-290.39862941,0.00016623,2]
[403766968,1769526643783,-301.1433787,0.00016678,2]
[403766969,1769526643792,-1215.49,0.00016682,2]
[403766970,1769526643802,-500.52951477,0.00016683,2]
[403766971,1769526643811,-165.14,0.00016712,2]
[403766972,1769526643821,-225.62412018,0.00016799,2]
[403766973,1769526643831,-500.0,0.00016799,2]
[403766974,1769526643842,-500.0,0.00016799,2]
[403766975,1769526643851,-500.0,0.00016799,2]
[403766976,1769526643860,-119954.291939,0.000168,2]
[403766977,1769526643870,-13052.59440405,0.0001688,2]
[403766978,1769526643879,-15675.57885438,0.0001688,2]
[403766980,1769526643889,-1600.0,0.000169,6]
[403766982,1769526643899,-161.0,0.000169,2]
[403766984,1769526643910,-161.0,0.000169,2]
[403766986,1769526643920,-14848.84234308,0.000169,2]
[403766988,1769526643929,-500.91361119,0.00016921,2]
[403766990,1769526643938,-1007.68701346,0.00016921,2]
[403766992,1769526643947,-229.59307043,0.00016921,2]
[403766994,1769526643956,-1000.0,0.00016921,2]
[403766996,1769526643966,-1004.26926601,0.00016921,2]
[403766998,1769526643976,-1000.0,0.00016921,2]
[403767001,1769526643986,-504.44885816,0.00016921,2]
[403767003,1769526643995,-1000.0,0.00016921,2]
[403767005,1769526644004,-1215.53340801,0.00016956,2]
[403767007,1769526644014,-157.38,0.00016961,2]
[403767009,1769526644023,-13588.8995116,0.00016971,2]
[403767011,1769526644032,-512.69,0.00016994,2]
[403767013,1769526644041,-16448.19273087,0.00017,2]
[403767015,1769526644050,-250.0,0.00017,2]
[403767017,1769526644060,-166.66,0.00017048,2]
[403767019,1769526644069,-18588.0041853,0.00017084,2]
[403767021,1769526644078,-1000.0,0.00017112,2]
[403767023,1769526644088,-187.78006525,0.00017169,2]
[403767025,1769526644097,-885.86649465,0.00017169,2]
[403767027,1769526644106,-13052.59440405,0.0001722,2]
[403767029,1769526644116,-15675.57885438,0.0001722,2]
[403767031,1769526644124,-500.0,0.00017264,2]
[403767033,1769526644134,-433.0,0.00017268,2]
[403767035,1769526644143,-2822.87,0.000173,2]
[403767037,1769526644152,-1198.23,0.000173,2]
[403767039,1769526644161,-3032.0933242,0.00017403,2]
[403767041,1769526644171,-334.5472959,0.00017442,2]
[403767043,1769526644180,-1500.0,0.00017468,2]
[403767045,1769526644190,-556.01788943,0.00017468,2]
[403767047,1769526644199,-409.28368785,0.00017468,2]
[403767049,1769526644209,-1605.18774302,0.000175,2]
[403767051,1769526644218,-4147.5443507,0.00017518,2]
[403767053,1769526644227,-13052.59440405,0.0001756,2]
[403767055,1769526644236,-15675.57885438,0.0001756,2]
[403767057,1769526644245,-166.66,0.0001756,2]
[403767059,1769526644254,-781.92482037,0.000177,2]
[403767061,1769526644263,-2200.0,0.000177,6]
[403767063,1769526644273,-150.00074025,0.00017707,2]
[403767065,1769526644282,-1000.0,0.00017709,2]
[403767067,1769526644292,-194.72792766,0.00017717,2]
[403767069,1769526644301,-918.64355495,0.00017717,2]
[403767071,1769526644310,-512.69,0.00017733,2]
[403767073,1769526644320,-542.1712,0.000178,2]
[403767075,1769526644329,-2700.0,0.000178,6]
[403767077,1769526644338,-772.42,0.00017878,2]
[403767079,1769526644348,-500.0,0.00017899,2]
[403767081,1769526644357,-162.0,0.000179,2]
[403767083,1769526644366,-162.0,0.000179,2]
[403767085,1769526644376,-500.0,0.000179,6]
[403767087,1769526644385,-13052.59440405,0.000179,2]
[403767089,1769526644394,-652.1315035,0.000179,2]
[403767091,1769526644404,-2433.16803357,0.000179,2]
[403767093,1769526644413,-168.31540501,0.000179,2]
[403767095,1769526644422,-15675.57885438,0.000179,2]
[403767097,1769526644431,-500.0,0.00017948,2]
[403767099,1769526644441,-509.86150637,0.00017948,2]
[403767101,1769526644450,-500.0,0.00017949,2]
[403767103,1769526644459,-150.0,0.00017973,2]
[403767105,1769526644470,-150.0,0.00017973,2]
[403767107,1769526644480,-200.11339891,0.0001799,2]
[403767109,1769526644489,-151.0,0.00017997,2]
[403767111,1769526644499,-500.0,0.00017999,2]
[403767113,1769526644509,-311.60217601,0.00017999,2]
[403767115,1769526644518,-155.0,0.00017999,2]
[403767117,1769526644527,-500.0,0.00017999,2]
[403767119,1769526644537,-1326379.96744831,0.00018,2]
[403767159,1769526644910,-655.28295906,0.00018,2]
[403767173,1769526646202,-1.7e-07,0.00018,2]
[403767174,1769526646425,-560.21364944,0.00018,2]
[403767175,1769526646456,-40921.17509263,0.00018,2]
[403767176,1769526646467,-3498.88863397,0.00018,2]
[403767177,1769526646478,-16235.23431367,0.00018,2]
[403767178,1769526646583,-580.415,0.00014839,2]
[403767182,1769526817339,-500.0,0.00014739,2]
[403767183,1769526817361,-20.91166156,0.00014739,2]
[403767184,1769526818969,-134.75362719,0.00014739,2]
[403767185,1769526818992,-300.0,0.00014838,2]
[403767186,1769526819016,-118.1650152,0.00014838,2]
[403767187,1769526821824,-181.8349848,0.00014838,2]
[403767188,1769526821847,-195.0,0.00014838,2]
[403767189,1769526821871,-22.63356422,0.00014839,2]
[403767190,1769526823390,-153.16050535,0.00014839,2]
[403767191,1769526825909,-182.22117284,0.00014839,2]
[403767192,1769526827438,-397.89604251,0.00014839,2]
[403767193,1769526830067,-165.68575151,0.00014839,2]
[403767194,1769526831532,-290.61766379,0.00014839,2]
[403767195,1769526835110,-320.77772117,0.00014839,2]
[403767196,1769526838408,-174.60756282,0.00014839,2]
[403767197,1769526841190,-162.81457708,0.00014839,2]
[403767198,1769526842712,-197.01085686,0.00014838,2]
[403767199,1769526845520,-102.98914314,0.00014838,2]
[403767200,1769526845546,-236.37382712,0.00014839,2]
[403767201,1769526847628,-241.57652136,0.00014839,2]
[403767202,1769526849180,-268.15987921,0.00014839,2]
[403767203,1769526851226,-239.68368424,0.00014839,2]
[403767204,1769526853295,-158.98184327,0.00014839,2]
[403767205,1769526854821,-174.54662291,0.00014839,2]
[403767206,1769526862426,-297.41183207,0.00014839,2]
[403767207,1769526864496,-236.90060527,0.00014839,2]
[403767208,1769526867778,-250.0,0.00014839,2]
[403767209,1769526869543,-165.50933867,0.00014839,2]
[403767210,1769526871245,-183.1121574,0.00014839,2]
[403767211,1769526872775,-300.0,0.00014839,2]
[403767212,1769526946237,150.0,0.00016415,120]
[403767236,1769527504725,-273.0,0.00014838,2]
[403767238,1769527515117,171.24,0.00012875,2]
[403767241,1769527525527,1028.67373226,0.000108,2]
[403767254,1769527665415,4431.17034284,0.00013,2]
[403767257,1769527703322,-195.0,0.00014838,2]
[403767261,1769527719548,-250.0,0.00014838,2]
[403767262,1769527723278,2386.63684425,0.000149,2]
[403767299,1769527832165,-195.0,0.00014901,2]
[403767300,1769527832176,-274.0,0.00014901,2]
[403767301,1769527832185,-195.0,0.00014919,2]
[403767302,1769527832195,-79.753,0.00014938,2]
[403767303,1769527832208,-420.247,0.00014938,2]
[403767304,1769527832218,-30.48194432,0.00014999,2]
[403767305,1769527832267,-269.51805568,0.00014999,2]
[403767306,1769527832277,-188.92941761,0.00014999,2]
[403767307,1769527832288,-11.07058239,0.00014999,2]
[403767308,1769527832299,-1200.0,0.00014999,2]
[403767309,1769527832309,-161.90528679,0.00014999,2]
[403767310,1769527832319,-138.09471321,0.00014999,2]
[403767311,1769527832329,-3070.56337621,0.00015,2]
[403767312,1769527832338,-15083.45398296,0.00015,2]
[403767313,1769527832350,-1026.13185476,0.00015,2]
[403767314,1769527832360,-150.00001761,0.00015093,2]
[403767315,1769527832370,-159.09126091,0.0001522,2]
[403767316,1769527832382,-7.56873909,0.0001522,2]
[403767317,1769527832392,-204.15132366,0.00015322,2]
[403767318,1769527832402,-88.27993725,0.00015428,2]
[403767319,1769527832413,-130.40641835,0.00015428,2]
[403767320,1769527832423,-322.6107,0.00015528,2]
[403767321,1769527832432,-234.01342646,0.00015528,2]
[403767322,1769527832442,-2.13081723,0.00015528,2]
[403767323,1769527832454,-199.80204376,0.00015528,2]
[403767324,1769527832464,-166.66,0.0001554,2]
[403767325,1769527832473,-707.0,0.00015541,2]
[403767327,1769527832482,-2000.0,0.00015542,2]
[403767328,1769527832492,-1000.0,0.00015542,2]
[403767329,1769527832502,-660.69374487,0.00015542,2]
[403767330,1769527832566,-339.30625513,0.00015542,2]
[403767332,1769527832575,-235.29374487,0.00015542,2]
[403767335,1769527832588,-5.56725513,0.00015542,2]
[403767338,1769527832598,-209.40437684,0.00015583,2]
[403767340,1769527832607,-217.15233878,0.00015638,2]
[403767342,1769527832618,-225.18697532,0.00015693,2]
[403767344,1769527832628,-151.0,0.00015741,2]
[403767347,1769527832638,-233.51889341,0.00015748,2]
[403767350,1769527832647,-242.15909246,0.00015803,2]
[403767353,1769527832657,-251.11897888,0.00015858,2]
[403767356,1769527832666,-166.66,0.00015861,2]
[403767358,1769527832676,-260.4103811,0.00015913,2]
[403767362,1769527832686,-270.0455652,0.00015968,2]
[403767364,1769527832696,-280.03725112,0.00016023,2]
[403767367,1769527832711,-550.0,0.00016027,2]
[403767368,1769527832721,-500.0,0.00016028,2]
[403767371,1769527832737,-500.0,0.00016028,2]
[403767373,1769527832749,-500.0,0.00016028,2]
[403767375,1769527832759,-500.0,0.00016028,2]
[403767377,1769527832770,-647.83954011,0.00016028,2]
[403767379,1769527832781,-500.0,0.00016028,2]
[403767381,1769527832790,-500.0,0.00016028,2]
[403767383,1769527832799,-500.0,0.00016028,2]
[403767384,1769527832810,-500.0,0.00016028,2]
[403767385,1769527832819,-263.13403994,0.00016028,2]
[403767386,1769527832829,-500.0,0.00016028,2]
[403767387,1769527832838,-193.82783315,0.00016028,2]
[403767388,1769527832848,-500.0,0.00016028,2]
[403767389,1769527832857,-500.0,0.00016028,2]
[403767390,1769527832867,-500.0,0.00016028,2]
[403767391,1769527832877,-500.0,0.00016028,2]
[403767392,1769527832886,-500.0,0.00016028,2]
[403767393,1769527832896,-500.0,0.00016028,2]
[403767394,1769527832905,-500.0,0.00016028,2]
[403767395,1769527832914,-259.4000385,0.00016028,2]
[403767396,1769527832923,-500.0,0.00016028,2]
[403767397,1769527832935,-500.0,0.00016028,2]
[403767398,1769527832945,-500.0,0.00016028,2]
[403767399,1769527832954,-500.0,0.00016028,2]
[403767400,1769527832964,-500.0,0.00016028,2]
[403767401,1769527832974,-500.0,0.00016028,2]
[403767402,1769527832984,-500.0,0.00016028,2]
[403767403,1769527832994,-500.0,0.00016028,2]
[403767404,1769527833004,-500.0,0.00016028,2]
[403767405,1769527833014,-500.0,0.00016028,2]
[403767406,1769527833023,-500.0,0.00016028,2]
[403767407,1769527833033,-500.0,0.00016028,2]
[403767408,1769527833042,-500.0,0.00016028,2]
[403767409,1769527833052,-500.0,0.00016028,2]
[403767410,1769527833061,-500.0,0.00016028,2]
[403767411,1769527833071,-500.0,0.00016028,2]
[403767412,1769527833080,-500.0,0.00016028,2]
[403767413,1769527833089,-500.0,0.00016028,2]
[403767414,1769527833099,-500.0,0.00016028,2]
[403767415,1769527833108,-500.0,0.00016028,2]
[403767416,1769527833118,-500.0,0.00016028,2]
[403767417,1769527833128,-500.0,0.00016028,2]
[403767418,1769527833137,-512.27252746,0.00016028,2]
[403767419,1769527833147,-500.0,0.00016028,2]
[403767420,1769527833156,-500.0,0.00016028,2]
[403767421,1769527833166,-500.0,0.00016028,2]
[403767422,1769527833175,-500.0,0.00016028,2]
[403767423,1769527833185,-500.0,0.00016028,2]
[403767424,1769527833194,-500.0,0.00016028,2]
[403767425,1769527833204,-500.0,0.00016028,2]
[403767426,1769527833215,-500.0,0.00016028,2]
[403767427,1769527833225,-500.0,0.00016028,2]
[403767428,1769527833236,-500.0,0.00016028,2]
[403767429,1769527833247,-500.0,0.00016028,2]
[403767430,1769527833256,-250.0,0.00016028,2]
[403767431,1769527833266,-500.0,0.00016028,2]
[403767432,1769527833275,-500.0,0.00016028,2]
[403767433,1769527833285,-500.0,0.00016028,2]
[403767434,1769527833296,-500.0,0.00016028,2]
[403767435,1769527833306,-500.0,0.00016028,2]
[403767436,1769527833316,-500.0,0.00016028,2]
[403767437,1769527833326,-469.76253646,0.00016029,2]
[403767438,1769527833336,-1239.71076608,0.00016029,2]
[403767439,1769527833346,-2186.99673897,0.00016029,2]
[403767440,1769527833355,-3271.61632582,0.00016029,2]
[403767441,1769527833366,-4426.6068,0.00016029,2]
[403767442,1769527833375,-7243.47316729,0.00016069,2]
[403767443,1769527833385,-778.86477401,0.00016073,2]
[403767444,1769527833395,-500.0,0.00016073,2]
[403767445,1769527833404,-606911.37977529,0.00016077,2]
[403767446,1769527833417,-56136.56940448,0.00016077,2]
[403767447,1769527833429,-113341.45692733,0.00016077,2]
[403767448,1769527833440,-183458.37455249,0.00016077,2]
[403767449,1769527833452,-1254.41808677,0.00016077,2]
[403767451,1769527838321,-20809.26981631,0.00016077,2]
[403767452,1769527838333,-5523.718,0.00016077,2]
[403767453,1769527838345,-12564.81343733,0.00016077,2]
[403767454,1769527838355,-290.39862941,0.00016078,2]
[403767455,1769527838364,-171.24,0.00016094,2]
[403767456,1769527838375,-1000.0,0.00016115,2]
[403767457,1769527838385,-3240.0,0.00016116,2]
[403767458,1769527838394,-301.1433787,0.00016133,2]
[403767459,1769527838404,-500.0,0.0001617,2]
[403767460,1769527838418,-212.67130336,0.0001617,2]
[403767461,1769527838430,-287.32869664,0.0001617,2]
[403767462,1769527838440,-1000.0,0.0001617,2]
[403767463,1769527838450,-250.0,0.0001617,2]
[403767464,1769527838460,-500.0,0.0001617,2]
[403767465,1769527838470,-500.0,0.0001617,2]
[403767466,1769527838479,-500.0,0.0001617,2]
[403767467,1769527838489,-250.0,0.0001617,2]
[403767468,1769527838499,-500.0,0.0001617,2]
[403767469,1769527838509,-250.0,0.0001617,2]
[403767470,1769527838519,-500.0,0.0001617,2]
[403767471,1769527838528,-1000.0,0.0001617,2]
[403767472,1769527838538,-500.0,0.0001617,2]
[403767473,1769527838547,-1000.0,0.0001617,2]
[403767474,1769527838557,-500.0,0.0001617,2]
[403767475,1769527838566,-500.0,0.0001617,2]
[403767476,1769527838575,-500.0,0.0001617,2]
[403767477,1769527838585,-500.0,0.0001617,2]
[403767479,1769527838595,-500.0,0.0001617,2]
[403767481,1769527838604,-500.0,0.0001617,2]
[403767483,1769527838614,-500.0,0.0001617,2]
[403767485,1769527838623,-500.0,0.0001617,2]
[403767487,1769527838633,-500.0,0.0001617,2]
[403767489,1769527838643,-500.0,0.0001617,2]
[403767491,1769527838652,-250.0,0.0001617,2]
[403767493,1769527838662,-500.0,0.0001617,2]
[403767494,1769527838671,-250.0,0.0001617,2]
[403767495,1769527838680,-500.0,0.0001617,2]
[403767496,1769527838691,-250.0,0.0001617,2]
[403767497,1769527838700,-444.48992459,0.0001617,2]
[403767498,1769527838710,-250.0,0.0001617,2]
[403767499,1769527838719,-250.0,0.0001617,2]
[403767500,1769527838729,-250.0,0.0001617,2]
[403767501,1769527838738,-250.0,0.0001617,2]
[403767502,1769527838747,-250.0,0.0001617,2]
[403767503,1769527838757,-250.0,0.0001617,2]
[403767504,1769527838767,-250.0,0.0001617,2]
[403767505,1769527838780,-250.0,0.0001617,2]
[403767506,1769527838789,-250.0,0.0001617,2]
[403767507,1769527838800,-823.77908852,0.0001617,2]
[403767508,1769527838810,-151.0,0.0001617,2]
[403767509,1769527838820,-151.0,0.0001617,2]
[403767510,1769527838829,-151.0,0.0001617,2]
[403767511,1769527838839,-151.0,0.0001617,2]
[403767512,1769527838849,-151.0,0.0001617,2]
[403767513,1769527838859,-151.0,0.0001617,2]
[403767514,1769527838868,-151.0,0.0001617,2]
[403767515,1769527838879,-151.0,0.0001617,2]
[403767516,1769527838889,-151.0,0.0001617,2]
[403767517,1769527838900,-151.0,0.0001617,2]
[403767518,1769527838910,-151.0,0.0001617,2]
[403767519,1769527838920,-151.0,0.0001617,2]
[403767520,1769527838929,-12069.53,0.0001618,2]
[403767521,1769527838939,-166.66,0.00016181,2]
[403767522,1769527838949,-5429.85,0.000162,5]
[403767523,1769527838959,-500.0,0.00016207,2]
[403767524,1769527838968,-500.0,0.00016302,2]
[403767525,1769527838982,-274.04,0.0001632,2]
[403767526,1769527838992,-195.0,0.00016322,2]
[403767527,1769527839002,-250.0,0.00016322,2]
[403767528,1769527839012,-195.0,0.00016322,2]
[403767529,1769527839022,-250.0,0.00016322,2]